bitfinex-derivatives/quotes_ETHF0:USTF0_20220106
["timestamp","ask_amount","ask_price","bid_price","bid_amount"]
[1641461416585,6.60399273,3355.9,3354.8,3.462]
[1641461416787,0.843,3355.4,3354.4,2.00479]
[1641461416985,0.843,3355.4,3354.5,1.45721]
[1641461417185,0.843,3355.4,3354.8,1.45721]
[1641461417394,0.843,3355.4,3355.3,1.45721]
[1641461417588,0.843,3355.4,3355.3,1.687201]
[1641461417789,1.33698183,3356.3,3355.3,1.687201]
[1641461417987,1.33698183,3356.3,3355.9,1.45721]
[1641461418187,1.33698183,3356.3,3355.6,2.00479]
[1641461418387,1.33698183,3355.8,3355.6,2.00479]
[1641461418590,1.33698183,3355.8,3355.7,3.187201]
[1641461418789,4.18119461,3356.8,3355.7,5.36146214]
[1641461418989,4.18119461,3356.8,3356.7,1.45721]
[1641461419488,4.18119461,3356.8,3356.7,1.687201]
[1641461419688,4.18119461,3356.8,3356.6,1.45721]
[1641461419890,3.33922143,3356.8,3356.6,1.45721]
[1641461420090,3.78230481,3357.9,3356.6,1.45721]
[1641461420290,2.00479,3356.8,3356.6,1.45721]
[1641461420494,2.00479,3356.8,3356.6,1.687201]
[1641461421695,0.63121942,3357.8,3356.6,1.687201]
[1641461421893,4.22623436,3358.8,3357.7,1.45721]
[1641461422095,5.44117591,3358.6,3357.7,1.45721]
[1641461422297,4.00958,3357.8,3357.7,1.45721]
[1641461422496,2.00479,3357.8,3357.7,1.687201]
[1641461422694,4.765095,3357.8,3357.7,1.687201]
[1641461422895,3.33091127,3358.6,3357.7,1.687201]
[1641461423195,3.33091127,3358.6,3357.7,0.933491]
[1641461423395,3.33091127,3358.6,3358.5,1.45721]
[1641461423596,3.73951481,3358.8,3358.5,1.45721]
[1641461423796,4.76396,3358.6,3358.5,2.427201]
[1641461423997,2.49787511,3359.0,3358.5,0.40763177]
[1641461424397,2.63026911,3359.0,3358.5,0.40763177]
[1641461424597,2.63026911,3359.0,3358.1,2.00479]
[1641461424798,4.763676,3358.9,3358.1,2.00479]
[1641461424999,0.132394,3358.8,3358.1,2.00479]
[1641461425299,4.764102,3358.7,3358.1,2.00479]
[1641461425499,0.132394,3358.6,3357.3,1.48865127]
[1641461425699,1.5,3358.3,3357.0,1.68265089]
[1641461425897,1.5,3358.3,3356.9,1.48880863]
[1641461425898,0.8229,3358.3,3356.9,2.98880863]
[1641461426099,4.765237,3358.2,3356.9,1.5]
[1641461426298,2.00479,3358.1,3357.4,2.00479]
[1641461426898,2.00479,3358.1,3357.5,12.71]
[1641461427502,4.59920273,3358.3,3357.9,12.71]
[1641461428100,4.59920273,3358.3,3358.0,14.17024248]
[1641461428300,4.59920273,3358.3,3358.2,16.71958]
[1641461428500,4.59920273,3358.3,3358.2,4.00958]
[1641461428700,4.59920273,3358.3,3358.2,16.71958]
[1641461428902,4.97446274,3358.8,3358.2,16.71958]
[1641461428903,4.20630499,3358.8,3358.2,18.21958]
[1641461429102,4.20630499,3358.8,3358.7,1.5]
[1641461429303,4.20630499,3358.8,3358.7,1.576609]
[1641461430109,4.20630499,3358.8,3358.7,1.07828745]
[1641461430304,4.20630499,3358.8,3358.7,3.08307745]
[1641461430506,4.20630499,3358.8,3358.7,2.081399]
[1641461430706,4.97446274,3359.6,3358.7,2.081399]
[1641461430707,3.36425307,3359.3,3358.7,2.081399]
[1641461431105,0.132394,3359.2,3358.3,2.34570123]
[1641461431311,10.0,3358.3,3358.2,10.0]
[1641461431505,10.7865,3358.3,3358.2,10.076609]
[1641461431707,10.7865,3358.3,3358.2,10.0]
[1641461432105,10.7865,3358.3,3358.2,5.1251]
[1641461432305,10.7865,3358.3,3358.2,7.12989]
[1641461432507,10.0,3358.3,3358.2,7.206499]
[1641461432708,3.36425307,3358.9,3358.2,7.206499]
[1641461432906,3.36425307,3358.9,3358.2,9.52089939]
[1641461433106,3.36425307,3358.9,3358.2,8.032999]
[1641461433506,3.36425307,3358.8,3358.2,8.032999]
[1641461434306,3.36425307,3358.8,3358.7,2.00479]
[1641461434506,3.36425307,3358.8,3358.7,2.081399]
[1641461434708,0.84197318,3360.0,3358.8,12.71]
[1641461434907,4.20580333,3359.4,3358.9,14.21]
[1641461435108,3.36464267,3359.1,3359.0,1.27653375]
[1641461435308,5.046964,3360.1,3359.3,1.48742899]
[1641461435508,5.046964,3360.1,3359.7,1.5]
[1641461435808,5.046964,3360.1,3359.9,1.5]
[1641461436009,5.046964,3360.1,3360.0,1.48719894]
[1641461436309,5.046964,3360.1,3360.0,3.56859794]
[1641461436511,5.68057358,3360.6,3360.0,3.56859794]
[1641461436912,2.00479,3361.0,3360.2,1.5]
[1641461437208,4.62178384,3360.8,3360.2,0.83974545]
[1641461437410,4.62178384,3360.8,3360.6,1.5]
[1641461437611,2.16851481,3360.9,3360.7,14.2732994]
[1641461437812,0.80592826,3360.9,3360.8,14.21]
[1641461438211,0.80592826,3360.9,3360.8,18.21958]
[1641461438612,0.21162826,3360.9,3360.8,18.21958]
[1641461438811,0.14922826,3360.9,3360.8,18.21958]
[1641461439011,5.0410287,3361.9,3360.8,18.21958]
[1641461439211,5.0410287,3361.9,3361.8,14.21]
[1641461439511,5.0410287,3361.9,3361.8,14.889709]
[1641461439909,5.0410287,3361.9,3361.8,16.37587355]
[1641461440312,5.0410287,3361.9,3361.8,21.2212456]
[1641461440912,5.1661287,3361.9,3361.8,21.2212456]
[1641461441111,0.1251,3361.9,3361.8,21.2212456]
[1641461441312,0.2711,3361.9,3361.8,16.3463456]
[1641461441717,0.2711,3361.9,3361.8,14.86018105]
[1641461442312,0.2711,3361.9,3361.8,16.34582012]
[1641461442512,0.2711,3361.9,3361.8,20.34582012]
[1641461442913,0.70203564,3361.9,3361.8,22.31965115]
[1641461443613,0.47460877,3362.0,3361.8,22.31965115]
[1641461443813,1.67946641,3362.3,3361.9,11.8351]
[1641461444015,1.67946641,3362.3,3362.2,9.3351]
[1641461444212,0.10846641,3362.3,3362.2,11.416499]
[1641461444413,2.51919961,3362.8,3362.2,11.416499]
[1641461444614,2.51919961,3362.8,3362.7,13.3351]
[1641461444813,2.51919961,3362.8,3362.7,13.9153]
[1641461445014,1.67915505,3363.0,3362.7,13.991909]
[1641461445212,1.67915505,3363.0,3362.9,10.8201478]
[1641461445415,1.23425505,3363.0,3362.9,14.8201478]
[1641461445614,0.44495505,3363.0,3362.9,21.0284677]
[1641461445816,0.44495505,3363.0,3362.9,19.6200289]
[1641461446016,0.44495505,3363.0,3362.9,9.3623019]
[1641461446214,0.44495505,3363.0,3362.9,11.3670919]
[1641461446415,0.67494605,3363.0,3362.9,5.4601729]
[1641461446616,0.229991,3363.0,3362.9,4.00958]
[1641461446814,0.132394,3363.3,3362.9,4.00958]
[1641461447216,0.132394,3363.3,3362.9,2.00479]
[1641461449719,1.5,3363.2,3362.6,1.00756846]
[1641461449919,1.5,3362.7,3362.6,1.00756846]
[1641461450120,2.1076,3362.7,3362.6,1.00756846]
[1641461450320,2.1076,3362.7,3362.0,4.0]
[1641461450321,6.479565,3362.7,3362.4,1.00756846]
[1641461450524,4.979565,3362.7,3362.4,1.00756846]
[1641461451119,4.847171,3362.7,3362.4,1.00756846]
[1641461451321,4.847171,3362.7,3362.5,0.076609]
[1641461451522,3.35893281,3363.4,3362.5,2.10555452]
[1641461451823,1.5,3363.3,3362.5,2.10555452]
[1641461452122,3.35893281,3363.4,3362.5,2.10555452]
[1641461452323,2.00479,3363.2,3362.5,0.6192]
[1641461452523,3.35893281,3362.9,3362.5,0.6192]
[1641461452723,3.35893281,3362.9,3362.7,1.48624407]
[1641461452923,3.35893281,3362.9,3362.8,0.076609]
[1641461453129,3.35893281,3362.9,3362.4,2.00479]
[1641461453324,3.35893281,3362.9,3362.8,1.48621756]
[1641461453728,0.229991,3362.9,3362.8,1.48621756]
[1641461454226,4.52370031,3363.2,3362.8,1.56282656]
[1641461454425,4.52370031,3363.2,3362.8,3.49100756]
[1641461454627,2.51891031,3363.2,3362.8,3.49100756]
[1641461455031,2.51891031,3363.2,3362.9,12.71]
[1641461455228,2.51891031,3363.2,3363.0,0.076609]
[1641461455427,2.51891031,3363.2,3363.1,14.19591501]
[1641461455632,2.51891031,3363.2,3363.1,12.71]
[1641461455830,2.51891031,3363.2,3363.1,15.20348347]
[1641461456030,1.67904446,3363.3,3363.1,15.20348347]
[1641461456229,1.90903546,3363.3,3363.1,2.49348347]
[1641461456430,1.5,3363.2,3363.1,1.00756846]
[1641461456629,0.6527,3363.2,3362.8,1.34323556]
[1641461456929,0.132394,3363.1,3362.8,1.34323556]
[1641461457129,0.229991,3363.0,3362.8,3.556e-05]
[1641461457431,0.132394,3362.9,3362.4,1.67931158]
[1641461457630,0.132394,3362.9,3362.7,1.34324922]
[1641461458029,0.229991,3362.8,3362.7,1.34324922]
[1641461458231,2.51891031,3363.6,3362.7,1.34324922]
[1641461458430,2.00479,3363.1,3362.7,1.48618664]
[1641461458829,2.51891031,3363.0,3362.7,1.48618664]
[1641461459030,0.229991,3362.9,3362.3,2.00479]
[1641461459431,0.132394,3362.8,3362.3,2.00479]
[1641461459732,0.132394,3362.8,3362.6,1.48624186]
[1641461459930,0.229991,3362.7,3362.6,1.48624186]
[1641461460737,2.51891031,3362.9,3362.6,1.48624186]
[1641461462534,2.51891031,3362.9,3362.7,0.076609]
[1641461462735,2.51891031,3362.9,3362.8,1.48606296]
[1641461462937,2.51891031,3362.9,3362.8,14.19606296]
[1641461463138,1.031e-05,3362.9,3362.8,14.19606296]
[1641461463536,1.031e-05,3362.9,3362.8,12.71]
[1641461463935,1.031e-05,3362.9,3362.8,14.19568984]
[1641461464137,1.031e-05,3362.9,3362.8,15.03606013]
[1641461464339,1.031e-05,3362.9,3362.8,17.04085013]
[1641461464935,1.031e-05,3362.9,3362.8,18.54085013]
[1641461465138,1.031e-05,3362.9,3362.8,19.10835013]
[1641461465337,1.031e-05,3362.9,3362.8,17.60835013]
[1641461465537,1.031e-05,3362.9,3362.8,19.10835013]
[1641461465942,4.486e-05,3363.4,3362.8,19.10835013]
[1641461466143,0.29087897,3364.0,3363.4,12.71]
[1641461466440,0.42327297,3364.0,3363.9,2.00479]
[1641461466641,0.65326397,3364.0,3363.9,2.00479]
[1641461466842,0.65326397,3364.0,3362.8,2.95610682]
[1641461467041,1.52016397,3364.0,3362.8,2.95610682]
[1641461467442,1.52016397,3364.0,3362.9,12.71]
[1641461467643,1.229285,3364.0,3362.9,12.71]
[1641461467840,1.229285,3364.0,3362.6,2.01513693]
[1641461468042,1.5,3363.3,3362.8,1.48615351]
[1641461468242,1.5,3363.0,3362.1,4.60377096]
[1641461468444,2.00479,3362.2,3362.1,7.096e-05]
[1641461468643,2.912981,3362.2,3362.1,7.096e-05]
[1641461468844,3.045375,3362.2,3361.9,2.01665064]
[1641461469142,1.5,3362.1,3361.9,2.01665064]
[1641461469343,1.5,3362.1,3362.0,0.0001]
[1641461469544,2.0516,3362.1,3361.7,2.5208133]
[1641461469842,3.11940275,3362.0,3361.4,0.84034206]
[1641461470043,1.5,3361.5,3361.4,0.8402711]
[1641461470244,1.729991,3361.5,3361.3,2.8450611]
[1641461470443,6.489841,3361.5,3361.3,0.8402711]
[1641461470742,6.489841,3361.5,3360.8,2.52143944]
[1641461470743,0.132394,3361.4,3360.8,2.52143944]
[1641461470952,1.5,3361.0,3360.3,4.19885912]
[1641461471345,4.893377,3360.9,3360.3,4.19885912]
[1641461471544,1.5,3360.4,3360.3,4.19885912]
[1641461471744,1.862385,3360.4,3359.5,9.23988782]
[1641461471945,9.99999999,3360.1,3359.5,4.19885912]
[1641461472144,1.5,3359.6,3359.5,4.19885912]
[1641461472445,12.51129695,3359.6,3358.8,5.0410287]
[1641461472644,1.5,3358.9,3358.8,5.0410287]
[1641461472845,2.644385,3358.9,3358.8,5.0410287]
[1641461473445,8.89646269,3358.9,3358.3,2.00479]
[1641461473647,7.40792,3358.9,3358.3,2.00479]
[1641461473944,1.48842526,3358.8,3358.3,2.00479]
[1641461474544,2.00479,3358.9,3358.4,12.71]
[1641461474743,1.48819711,3359.3,3358.4,12.71]
[1641461474945,1.48819711,3359.3,3358.4,13.2819]
[1641461475144,0.29087897,3358.8,3358.4,13.2819]
[1641461475345,1.34577584,3358.7,3358.4,13.2819]
[1641461475645,1.34577584,3358.7,3358.5,0.076609]
[1641461476249,1.34577584,3358.7,3358.6,12.71]
[1641461476448,1.34577584,3359.1,3358.6,19.70710414]
[1641461476647,1.34577584,3359.1,3358.9,12.71]
[1641461476847,1.34577584,3359.1,3359.0,14.27393844]
[1641461477048,1.34577584,3359.1,3359.0,13.64201353]
[1641461477247,1.34577584,3359.1,3359.0,15.12942925]
[1641461477647,1.34577584,3359.1,3359.0,15.20603825]
[1641461478252,1.00899439,3359.7,3359.0,18.57019251]
[1641461478449,1.00899439,3359.7,3359.6,4.00958]
[1641461478652,1.00899439,3359.7,3359.6,4.086189]
[1641461478851,1.00899439,3359.7,3359.6,16.796189]
[1641461479249,1.34577584,3359.7,3359.6,16.796189]
[1641461479450,1.34577584,3359.7,3359.6,18.28340784]
[1641461479851,1.68207713,3359.9,3359.6,18.28340784]
[1641461480150,1.68207713,3359.9,3359.8,12.71]
[1641461480351,1.68207713,3359.9,3359.8,12.786609]
[1641461480752,3.36415426,3360.7,3359.8,0.076609]
[1641461480951,1.68207713,3360.8,3359.8,0.076609]
[1641461481853,2.5226226,3361.1,3360.6,1.00888051]
[1641461482152,2.6550166,3361.1,3360.6,1.00888051]
[1641461482751,2.5226226,3361.1,3360.6,1.00888051]
[1641461482953,3.15317292,3361.0,3360.5,3.01367051]
[1641461483351,3.15317292,3361.0,3360.5,15.72367051]
[1641461484154,2.5226226,3361.1,3360.7,12.71]
[1641461484352,2.5226226,3361.1,3360.7,0.6452]
[1641461485454,2.5226226,3361.1,3360.8,12.71]
[1641461485653,2.5226226,3361.1,3360.9,0.076609]
[1641461485855,0.63055032,3361.2,3360.9,0.076609]
[1641461486058,0.63055032,3361.2,3361.0,12.71]
[1641461486456,0.63055032,3361.2,3361.1,14.791399]
[1641461486954,3.36415426,3361.6,3361.1,14.791399]
[1641461487155,3.36218586,3362.1,3361.1,14.791399]
[1641461487353,3.36218586,3362.1,3361.1,18.791399]
[1641461487554,3.36218586,3362.1,3361.1,14.791399]
[1641461487755,3.36218586,3362.1,3361.1,18.791399]
[1641461487958,3.36218586,3362.1,3361.5,12.71]
[1641461488155,4.62300556,3362.6,3361.5,13.3966]
[1641461488356,4.62300556,3362.6,3361.9,1.00856404]
[1641461488555,32.3984,3363.5,3361.9,1.00856404]
[1641461488556,4.62300556,3363.2,3362.6,12.71]
[1641461488755,4.62300556,3363.2,3362.6,13.526]
[1641461488954,4.62300556,3363.2,3362.8,12.71]
[1641461489756,4.62300556,3363.2,3362.5,2.00479]
[1641461489757,1.5,3363.0,3362.5,2.00479]
[1641461490158,0.7009,3363.2,3362.5,2.00479]
[1641461490357,0.132394,3362.9,3362.5,2.00479]
[1641461490557,1.5,3362.8,3362.5,2.00479]
[1641461490757,1.5,3362.8,3362.4,2.00479]
[1641461490758,0.362385,3362.7,3362.4,2.00479]
[1641461490956,1.48658874,3363.1,3362.4,2.00479]
[1641461491158,1.5,3362.9,3362.4,2.00479]
[1641461491361,6.1095943,3363.1,3361.6,10.06333061]
[1641461491558,6.1095943,3363.1,3361.6,1.34476657]
[1641461491765,1.5,3362.9,3361.6,1.34476657]
[1641461491958,8.2331943,3363.1,3361.6,1.34476657]
[1641461492158,1.5,3362.9,3361.6,1.34476657]
[1641461492558,2.00479,3362.5,3361.8,2.00479]
[1641461492758,0.132394,3362.4,3361.8,2.00479]
[1641461493259,1.5,3362.2,3361.4,2.00479]
[1641461493458,0.132394,3362.1,3361.1,1.0]
[1641461494059,0.5,3361.6,3361.1,1.0]
[1641461494262,0.5,3361.6,3358.4,3.49476103]
[1641461494263,0.5,3361.4,3359.9,1.48714364]
[1641461494559,2.00479,3360.4,3359.6,2.48728299]
[1641461494760,2.74099,3360.4,3359.6,2.48728299]
[1641461494962,0.6192,3360.4,3359.3,2.00479]
[1641461495163,0.6192,3360.4,3359.3,14.71479]
[1641461495363,0.6192,3360.4,3359.8,1.5]
[1641461495762,0.6192,3360.4,3360.3,14.21]
[1641461495963,0.6192,3360.4,3360.3,14.286609]
[1641461496163,34.13250433,3362.4,3360.3,15.77361333]
[1641461496364,1.48700433,3362.4,3360.3,14.27361333]
[1641461496562,2.00479,3361.3,3361.2,1.5]
[1641461496766,2.00479,3361.3,3361.2,14.286609]
[1641461497364,3.68614744,3361.3,3361.2,1.576609]
[1641461497965,1.68135744,3361.3,3361.2,1.576609]
[1641461498367,0.68135744,3361.3,3361.2,1.576609]
[1641461498666,6.00081524,3362.3,3361.2,6.93123507]
[1641461498667,0.68135744,3361.4,3361.2,6.93123507]
[1641461498865,0.68135744,3361.4,3361.3,14.21]
[1641461499066,2.47723091,3361.9,3361.3,15.69633022]
[1641461499268,2.47723091,3361.9,3361.8,15.71]
[1641461499564,2.47723091,3361.9,3361.8,15.786609]
[1641461499765,2.47723091,3362.4,3361.8,17.27279343]
[1641461499966,2.47723091,3362.4,3362.3,14.21]
[1641461500367,2.47723091,3362.4,3362.3,15.77270729]
[1641461500569,4.12748482,3362.9,3362.3,17.77749729]
[1641461500767,4.12748482,3362.9,3362.3,16.291399]
[1641461500968,0.84065379,3363.0,3362.3,16.291399]
[1641461502168,2.00479,3363.1,3362.4,1.34459892]
[1641461502376,2.00479,3363.1,3362.5,12.71]
[1641461503069,2.00479,3363.1,3362.7,12.71]
[1641461503470,2.00479,3363.1,3362.6,1.5]
[1641461503670,2.137184,3363.1,3362.6,12.71]
[1641461503871,2.137184,3363.1,3362.4,2.34459892]
[1641461504672,2.00479,3363.1,3362.5,12.71]
[1641461504872,1.00479,3363.1,3362.5,12.71]
[1641461505272,1.00479,3363.1,3362.3,3.34938892]
[1641461505672,1.00479,3363.1,3362.3,1.34459892]
[1641461505673,0.132394,3363.0,3362.3,1.34459892]
[1641461505872,1.48690041,3362.6,3361.8,2.01756911]
[1641461506073,1.48678545,3362.9,3361.8,2.01756911]
[1641461506276,0.132394,3362.5,3361.8,2.01756911]
[1641461506473,2.00479,3362.0,3361.8,2.01756911]
[1641461506672,2.00479,3362.0,3361.9,0.076609]
[1641461506875,9.99999999,3364.0,3361.9,0.076609]
[1641461506876,0.5366,3363.9,3361.9,0.076609]
[1641461507074,0.6236,3363.5,3361.9,0.076609]
[1641461507274,4.96813861,3362.9,3362.2,1.5]
[1641461507475,0.132394,3362.8,3362.0,1.5]
[1641461507975,4.96813861,3362.9,3361.7,1.48647162]
[1641461508175,4.96813861,3362.9,3362.8,1.5]
[1641461508376,3.96813861,3362.9,3362.8,0.885309]
[1641461508776,2.00479,3363.4,3362.8,0.885309]
[1641461508777,3.36182903,3363.0,3362.8,0.885309]
[1641461508976,3.36182903,3363.0,3362.8,2.385309]
[1641461509176,3.36182903,3363.0,3362.9,1.48595034]
[1641461509776,0.82724514,3373.1,3362.9,1.48595034]
[1641461509777,0.47500147,3363.3,3362.9,13.56474693]
[1641461509975,0.47500147,3363.3,3363.2,14.21]
[1641461510174,0.47500147,3363.3,3363.2,14.286609]
[1641461510578,0.47500147,3363.3,3363.2,17.77714843]
[1641461510877,0.47500147,3363.3,3363.2,5.06714843]
[1641461511076,0.47500147,3363.3,3363.2,4.19726388]
[1641461511280,0.47500147,3363.3,3363.0,0.69726388]
[1641461511479,0.47500147,3363.3,3362.9,1.68091452]
[1641461511880,0.47500147,3363.3,3363.2,0.69726387]
[1641461512079,0.47500147,3363.3,3363.2,13.40726387]
[1641461512479,3.36182903,3364.2,3363.2,16.42030969]
[1641461512778,3.36182903,3364.0,3363.7,0.69726387]
[1641461512978,3.36182903,3364.0,3363.8,12.71]
[1641461513781,3.36182903,3364.0,3363.9,0.69726387]
[1641461513980,3.36182903,3364.0,3363.9,14.23206387]
[1641461514180,3.36182903,3364.2,3363.9,14.23206387]
[1641461514387,3.36182903,3364.2,3363.9,13.5348]
[1641461514582,3.36182903,3364.2,3364.1,13.40726387]
[1641461514985,3.36182903,3364.5,3363.9,0.8248]
[1641461515183,3.49422303,3364.5,3363.9,0.8248]
[1641461515586,3.49422303,3364.5,3364.1,0.69726387]
[1641461515786,3.36182903,3364.5,3363.9,0.8248]
[1641461516386,0.132394,3364.4,3363.8,1.00825582]
[1641461516587,3.36182903,3364.5,3363.7,3.01304582]
[1641461516787,3.36182903,3364.5,3364.0,0.69726387]
[1641461517487,3.36182903,3364.5,3363.7,3.58794582]
[1641461517687,3.36182903,3364.5,3364.4,0.69726387]
[1641461517887,3.59182003,3364.5,3364.4,1.25516387]
[1641461518087,3.36182903,3364.5,3364.4,0.5579]
[1641461518487,3.36182903,3364.5,3364.4,3.25995387]
[1641461518688,4.20044938,3364.7,3364.4,3.25995387]
[1641461518689,3.36182903,3364.7,3364.4,3.25995387]
[1641461518988,3.36182903,3364.7,3364.6,0.69726387]
[1641461519189,3.36182903,3364.7,3364.6,14.89229843]
[1641461519988,3.36182903,3364.7,3364.6,13.40726387]
[1641461520188,3.36182903,3364.7,3364.6,0.69726387]
[1641461520489,1.03272712,3364.7,3364.5,1.00825582]
[1641461520687,3.36182903,3365.3,3364.4,7.00479]
[1641461520888,1.48575385,3365.0,3364.4,7.00479]
[1641461521089,0.132394,3364.9,3364.4,7.00479]
[1641461521289,5.0,3364.5,3364.4,12.00479]
[1641461521489,5.076609,3364.5,3364.3,1.34413431]
[1641461521689,5.076609,3364.5,3364.3,0.229991]
[1641461521888,5.076609,3364.5,3363.8,1.34413431]
[1641461522392,5.0,3364.5,3363.8,1.34413431]
[1641461522591,5.0,3364.5,3364.4,2.41116385]
[1641461522790,5.0,3364.5,3364.4,16.83629087]
[1641461523191,5.0,3364.5,3364.4,4.12629087]
[1641461523388,5.0,3364.5,3364.4,18.13588577]
[1641461523589,5.0,3364.5,3364.4,5.42588577]
[1641461524391,5.076609,3364.5,3364.1,2.00479]
[1641461524590,5.952709,3364.5,3364.1,2.00479]
[1641461524790,0.132394,3364.4,3364.1,2.00479]
[1641461524993,0.132394,3364.4,3363.5,1.48558831]
[1641461525193,0.132394,3364.4,3363.2,1.34413431]
[1641461525389,1.61839954,3364.4,3363.2,1.34413431]
[1641461525590,0.132394,3364.4,3363.5,2.41116385]
[1641461525792,0.132394,3364.4,3363.3,12.71]
[1641461526190,0.132394,3364.4,3363.0,2.41116385]
[1641461526390,0.132394,3364.4,3362.5,2.41116385]
[1641461526591,2.00479,3364.3,3363.5,2.00479]
[1641461526791,0.132394,3364.2,3363.5,2.00479]
[1641461528095,0.132394,3364.2,3363.5,4.41595385]
[1641461528494,5.0,3364.5,3363.8,2.41116385]
[1641461528694,5.0,3364.5,3363.9,2.00479]
[1641461529092,5.0,3364.5,3364.2,2.41116385]
[1641461529294,1.33117319,3364.7,3364.4,15.12116385]
[1641461529494,1.33117319,3365.4,3364.7,12.71]
[1641461529798,1.33117319,3365.4,3365.2,2.41116385]
[1641461530095,1.33117319,3365.4,3363.8,2.0709]
[1641461530096,1.40778219,3365.4,3363.8,0.5709]
[1641461530295,1.40778219,3365.4,3364.6,12.71]
[1641461530495,0.132394,3365.3,3363.8,0.5709]
[1641461530696,0.132394,3365.3,3364.9,2.00479]
[1641461530896,1.61799555,3365.3,3364.9,2.00479]
[1641461531098,0.132394,3365.3,3364.9,2.00479]
[1641461531299,0.132394,3365.3,3363.8,12.71]
[1641461531498,0.132394,3365.3,3364.5,0.5617]
[1641461531700,1.5,3364.7,3363.2,2.8298418]
[1641461531899,1.5,3364.5,3363.2,2.8298418]
[1641461532098,2.1487,3364.5,3363.2,1.34413431]
[1641461532700,2.00479,3363.6,3363.2,1.34413431]
[1641461533100,2.00479,3364.0,3363.3,12.71]
[1641461533300,2.00479,3364.0,3363.3,0.7524]
[1641461533700,2.00479,3364.0,3363.4,12.71]
[1641461534100,2.00479,3364.0,3363.6,12.71]
[1641461534501,2.00479,3364.0,3363.8,12.71]
[1641461534701,2.00479,3364.9,3364.0,12.71]
[1641461534901,2.00479,3364.9,3364.0,17.2462]
[1641461535099,2.00479,3364.9,3364.0,13.2462]
[1641461535502,2.00479,3364.9,3364.2,1.48524851]
[1641461535902,2.00479,3364.9,3364.3,12.71]
[1641461536102,2.00479,3364.9,3364.2,1.48524851]
[1641461536504,2.137184,3364.9,3364.2,1.48524851]
[1641461536703,2.137184,3364.9,3364.4,2.00479]
[1641461537105,1.5,3364.8,3363.1,1.34413431]
[1641461537308,4.29626592,3364.9,3363.1,1.34413431]
[1641461538010,4.91986592,3364.9,3363.1,1.34413431]
[1641461538607,4.91986592,3364.9,3363.0,1.48577592]
[1641461538608,2.00479,3364.3,3363.2,2.00479]
[1641461538807,1.632394,3364.2,3363.2,2.00479]
[1641461539007,1.003294,3364.2,3363.2,2.00479]
[1641461539508,0.965994,3364.2,3363.2,2.00479]
[1641461539910,0.095094,3364.2,3363.2,2.00479]
[1641461540108,0.095094,3364.2,3362.7,1.48593709]
[1641461540309,0.095094,3364.2,3362.7,14.19593709]
[1641461540610,0.1338,3364.8,3363.7,14.71479]
[1641461540809,0.1338,3364.8,3363.7,2.69179]
[1641461541209,5.0,3364.2,3363.7,2.69179]
[1641461541411,0.6236,3365.2,3363.8,0.0373]
[1641461542609,2.00479,3364.7,3363.8,0.0373]
[1641461543009,2.00479,3364.7,3363.8,12.7473]
[1641461543410,2.00479,3365.3,3363.8,12.7473]
[1641461543610,2.00479,3365.3,3364.5,12.71]
[1641461543811,2.00479,3365.3,3364.6,0.0373]
[1641461544009,0.99830503,3365.5,3364.9,12.71]
[1641461544411,0.99830503,3365.5,3365.0,0.0373]
[1641461544611,0.99830503,3365.5,3365.1,2.00479]
[1641461545013,2.00479,3365.8,3365.2,0.0373]
[1641461545212,2.00479,3365.8,3365.2,0.9084]
[1641461545613,2.00479,3365.8,3365.2,13.6184]
[1641461546113,2.00479,3365.8,3365.2,2.39320525]
[1641461546513,2.00479,3365.8,3365.5,1.0]
[1641461546713,2.00479,3366.2,3365.6,0.267291]
[1641461547315,2.137184,3366.2,3365.6,0.267291]
[1641461548616,2.137184,3366.2,3365.6,0.0373]
[1641461548817,2.137184,3366.2,3365.7,2.00479]
[1641461549619,1.5,3365.9,3364.2,2.48357119]
[1641461549821,0.6236,3365.6,3364.1,0.99830503]
[1641461550022,2.1236,3365.6,3364.1,0.99830503]
[1641461550221,2.58419,3366.2,3364.1,0.99830503]
[1641461550222,12.71,3366.0,3364.1,0.99830503]
[1641461550420,1.5,3364.9,3364.1,0.99830503]
[1641461550622,0.132394,3364.8,3364.1,0.99830503]
[1641461550825,2.00479,3364.2,3364.1,0.99830503]
[1641461551223,2.00479,3364.2,3363.9,0.0373]
[1641461551421,2.00479,3364.2,3363.3,4.02235911]
[1641461551422,1.58649,3364.2,3363.3,2.00479]
[1641461551621,1.5,3363.6,3363.2,0.99830503]
[1641461551822,0.132394,3363.5,3362.5,2.01756911]
[1641461552024,0.690094,3363.5,3362.5,2.01756911]
[1641461552223,1.4864672,3363.4,3362.5,2.01756911]
[1641461552421,0.132394,3363.3,3362.5,2.01756911]
[1641461552822,0.132394,3363.3,3362.1,1.66371694]
[1641461552823,2.00479,3362.8,3362.4,1.33115633]
[1641461553023,0.132394,3362.7,3362.4,1.33115633]
[1641461553223,0.076609,3362.6,3362.4,1.33115633]
[1641461553425,0.132394,3362.5,3362.4,1.33115633]
[1641461553623,2.59619,3362.8,3362.4,1.56114733]
[1641461553823,2.00479,3362.8,3362.4,1.56114733]
[1641461554024,2.11344245,3362.7,3362.5,0.0373]
[1641461554425,2.11344245,3362.7,3362.6,0.229991]
[1641461554824,2.11344245,3362.7,3362.6,2.234781]
[1641461555424,2.11344245,3362.7,3362.6,14.944781]
[1641461555626,2.4961107,3363.2,3362.7,0.0373]
[1641461555825,2.4961107,3363.2,3363.0,1.48580242]
[1641461556028,2.4961107,3363.2,3363.1,12.939991]
[1641461556226,2.4961107,3363.2,3363.1,0.267291]
[1641461556426,0.68045342,3363.2,3363.1,0.267291]
[1641461556627,0.68045342,3363.2,3363.1,0.229991]
[1641461557526,3.32849802,3364.0,3363.1,0.229991]
[1641461557725,2.00479,3364.3,3363.1,0.229991]
[1641461558727,2.00479,3364.3,3363.6,2.00479]
[1641461558925,0.132394,3364.2,3363.6,2.00479]
[1641461559528,0.790094,3364.2,3363.6,2.00479]
[1641461560826,0.132394,3364.2,3363.6,2.00479]
[1641461561427,2.00479,3364.3,3364.2,0.867606]
[1641461561628,2.081399,3364.3,3364.2,0.867606]
[1641461562030,2.176493,3364.3,3364.2,0.867606]